fUSD/lending_fUSD_20250702
["ID","MTS","AMOUNT","RATE_DAILY","PERIOD"]
[369066029,1751452233709,-500.0,0.00019169,2]
[369066030,1751452233719,-500.0,0.00019177,2]
[369066031,1751452233730,-151.0,0.00019178,2]
[369066032,1751452233743,-1591.26830061,0.00019178,2]
[369066033,1751452233753,-780.2,0.00019178,2]
[369066034,1751452233763,-806.0,0.000192,3]
[369066035,1751452233772,-163.0,0.000192,4]
[369066036,1751452233782,-168.0,0.00019273,2]
[369066037,1751452233792,-5933.66933256,0.00019279,2]
[369066038,1751452233803,-1000.0,0.000193,5]
[369066039,1751452233812,-1000.0,0.000193,5]
[369066040,1751452233822,-1000.0,0.000193,5]
[369066041,1751452233831,-1000.0,0.000193,4]
[369066042,1751452233841,-1000.0,0.000193,4]
[369066043,1751452233850,-1000.0,0.000193,4]
[369066044,1751452233860,-1000.0,0.000193,3]
[369066045,1751452233870,-1000.0,0.000193,3]
[369066046,1751452233880,-1000.0,0.000193,3]
[369066047,1751452233890,-1193.0,0.000193,3]
[369066048,1751452233900,-1000.0,0.000193,3]
[369066049,1751452233910,-1000.0,0.000193,4]
[369066050,1751452233920,-1000.0,0.000193,5]
[369066051,1751452233930,-1000.0,0.000193,6]
[369066052,1751452233940,-1000.0,0.000193,7]
[369066053,1751452233949,-1000.0,0.000193,5]
[369066054,1751452233959,-1000.0,0.000193,4]
[369066055,1751452233969,-1000.0,0.000193,3]
[369066056,1751452233979,-1582.2436,0.000193,2]
[369066057,1751452233989,-189.03848607,0.000193,2]
[369066058,1751452233999,-151.0,0.00019314,2]
[369066059,1751452234010,-2988.80772347,0.00019339,2]
[369066060,1751452234019,-151.0,0.00019339,2]
[369066061,1751452234029,-151.0,0.00019339,2]
[369066062,1751452234039,-151.0,0.00019339,2]
[369066063,1751452234049,-151.0,0.00019339,2]
[369066064,1751452234058,-151.0,0.00019339,2]
[369066065,1751452234068,-50931.0,0.0001937,2]
[369066066,1751452234078,-166.57226627,0.00019373,2]
[369066067,1751452234091,-504.22550431,0.00019373,2]
[369066068,1751452234102,-500.0,0.00019373,2]
[369066069,1751452234112,-159.77351665,0.00019373,2]
[369066070,1751452234122,-500.0,0.00019373,2]
[369066071,1751452234132,-500.0,0.00019373,2]
[369066072,1751452234142,-500.0,0.00019373,2]
[369066073,1751452234151,-169.520028,0.00019373,2]
[369066074,1751452234160,-151.0,0.00019373,2]
[369066075,1751452234171,-151.0,0.0001939,2]
[369066076,1751452234182,-157.11,0.0001939,2]
[369066077,1751452234192,-157.11,0.0001939,2]
[369066078,1751452234202,-157.11,0.0001939,2]
[369066079,1751452234211,-157.11,0.0001939,2]
[369066080,1751452234221,-157.11,0.0001939,2]
[369066081,1751452234232,-157.11,0.0001939,2]
[369066082,1751452234242,-157.11,0.0001939,2]
[369066083,1751452234251,-157.11,0.0001939,2]
[369066084,1751452234261,-348.69518905,0.0001939,2]
[369066085,1751452234271,-500.0,0.00019395,2]
[369066086,1751452234280,-500.0,0.00019395,2]
[369066087,1751452234290,-500.0,0.00019395,2]
[369066088,1751452234300,-500.0,0.00019395,2]
[369066089,1751452234310,-102582.66158757,0.00019396,2]
[369066090,1751452234332,-612.29933909,0.00019396,2]
[369066207,1751452238955,-500.0,0.00017999,2]
[369066209,1751452238965,-4951.19595435,0.00018895,2]
[369066211,1751452238977,-702.25672547,0.00018895,2]
[369066213,1751452238985,-500.0,0.00019099,2]
[369066215,1751452238994,-500.0,0.00019099,2]
[369066217,1751452239003,-500.0,0.00019099,2]
[369066219,1751452239013,-464.52312548,0.00019099,2]
[369066221,1751452239021,-500.0,0.00019099,2]
[369066223,1751452239030,-77.69314041,0.00019099,2]
[369066225,1751452239042,-422.30685959,0.00019099,2]
[369066227,1751452239050,-82.04006467,0.00019099,2]
[369066229,1751452239061,-225.06731313,0.00019099,2]
[369066231,1751452239071,-500.0,0.00019099,2]
[369066233,1751452239080,-425.1013788,0.00019099,2]
[369066235,1751452239093,-151.0,0.00019339,2]
[369066237,1751452239102,-1129.39130807,0.00019396,2]
[369066239,1751452239113,-1570.70831661,0.00019396,2]
[369066242,1751452239129,-2615.92995068,0.00019396,2]
[369066244,1751452239141,-5939.63518397,0.00019396,2]
[369066251,1751452239195,-54549.04272819,0.00019396,2]
[369066253,1751452239204,-151.0,0.00019396,2]
[369066255,1751452239215,-151.0,0.00019396,2]
[369066257,1751452239225,-151.0,0.00019396,2]
[369066259,1751452239234,-151.0,0.00019396,2]
[369066261,1751452239242,-151.0,0.00019396,2]
[369066263,1751452239253,-151.0,0.00019396,2]
[369066265,1751452239262,-193.413073,0.00019396,2]
[369066268,1751452239275,-193.413073,0.00019396,2]
[369066270,1751452239285,-151.0,0.00019396,2]
[369066272,1751452239294,-151.0,0.00019396,2]
[369066274,1751452239304,-151.0,0.00019396,2]
[369066276,1751452239314,-151.0,0.00019396,2]
[369066278,1751452239323,-151.0,0.00019396,2]
[369066280,1751452239333,-272.238493,0.00019396,2]
[369066282,1751452239342,-272.238493,0.00019396,2]
[369066284,1751452239351,-151.0,0.00019396,2]
[369066286,1751452239360,-156.259149,0.00019396,2]
[369066288,1751452239370,-151.0,0.00019396,2]
[369066290,1751452239379,-151.0,0.00019396,2]
[369066292,1751452239389,-343.0583,0.00019396,2]
[369066294,1751452239399,-343.0583,0.00019396,2]
[369066296,1751452239409,-151.0,0.00019396,2]
[369066298,1751452239419,-151.0,0.00019396,2]
[369066300,1751452239429,-151.0,0.00019396,2]
[369066302,1751452239438,-151.0,0.00019396,2]
[369066304,1751452239447,-151.0,0.00019396,2]
[369066306,1751452239457,-151.0,0.00019396,2]
[369066308,1751452239467,-151.0,0.00019396,2]
[369066310,1751452239476,-179.079197,0.00019396,2]
[369066312,1751452239485,-10922.78232305,0.00019398,2]
[369066314,1751452239495,-1108.10656133,0.00019399,5]
[369066316,1751452239504,-1108.10656134,0.00019399,5]
[369066318,1751452239514,-1003.759,0.00019399,2]
[369066320,1751452239523,-1000.0,0.00019399,2]
[369066322,1751452239531,-1000.0,0.00019399,2]
[369066324,1751452239540,-300.0,0.00019399,2]
[369066326,1751452239549,-1000.0,0.00019399,2]
[369066328,1751452239558,-525.27578369,0.00019399,2]
[369066331,1751452239569,-500.0,0.00019399,2]
[369066333,1751452239578,-500.0,0.00019399,2]
[369066335,1751452239587,-500.0,0.00019399,2]
[369066337,1751452239595,-490.64,0.00019399,2]
[369066339,1751452239604,-500.0,0.00019399,2]
[369066340,1751452239613,-500.0,0.00019399,2]
[369066342,1751452239623,-500.0,0.00019399,2]
[369066344,1751452239632,-500.0,0.00019399,2]
[369066346,1751452239640,-500.0,0.00019399,2]
[369066348,1751452239650,-431.0,0.00019399,2]
[369066350,1751452239660,-300.0,0.00019399,2]
[369066352,1751452239668,-300.0,0.00019399,2]
[369066355,1751452239679,-1814411.0,0.000194,2]
[369066356,1751452239688,-2584.81341644,0.000194,2]
[369066358,1751452239697,-413419.76134291,0.000194,2]
[369066360,1751452239706,-151.0,0.000194,2]
[369066362,1751452239716,-151.0,0.000194,2]
[369066364,1751452239725,-151.0,0.000194,2]
[369066366,1751452239734,-151.0,0.000194,2]
[369066368,1751452239744,-151.0,0.000194,2]
[369066370,1751452239754,-151.0,0.000194,2]
[369066372,1751452239764,-151.0,0.000194,2]
[369066374,1751452239775,-151.0,0.000194,2]
[369066376,1751452239784,-151.0,0.000194,2]
[369066378,1751452239794,-151.0,0.000194,2]
[369066380,1751452239804,-193.413073,0.000194,2]
[369066382,1751452239814,-193.413073,0.000194,2]
[369066384,1751452239823,-193.413073,0.000194,2]
[369066386,1751452239832,-193.413073,0.000194,2]
[369066388,1751452239842,-151.0,0.000194,2]
[369066390,1751452239851,-151.0,0.000194,2]
[369066392,1751452239860,-227.698776,0.000194,2]
[369066394,1751452239870,-151.0,0.000194,2]
[369066396,1751452239879,-151.0,0.000194,2]
[369066398,1751452239888,-151.0,0.000194,2]
[369066400,1751452239897,-151.0,0.000194,2]
[369066402,1751452239907,-272.238493,0.000194,2]
[369066404,1751452239916,-272.238493,0.000194,2]
[369066406,1751452239926,-272.238493,0.000194,2]
[369066408,1751452239936,-272.238493,0.000194,2]
[369066410,1751452239946,-151.0,0.000194,2]
[369066412,1751452239955,-151.0,0.000194,2]
[369066414,1751452239965,-151.0,0.000194,2]
[369066415,1751452239975,-151.0,0.000194,2]
[369066417,1751452239984,-343.0583,0.000194,2]
[369066419,1751452239993,-343.0583,0.000194,2]
[369066421,1751452240002,-343.0583,0.000194,2]
[369066423,1751452240011,-343.0583,0.000194,2]
[369066425,1751452240020,-151.0,0.000194,2]
[369066427,1751452240029,-151.0,0.000194,2]
[369066429,1751452240038,-226.852367,0.000194,2]
[369066431,1751452240047,-151.0,0.000194,2]
[369066433,1751452240057,-151.0,0.000194,2]
[369066435,1751452240066,-151.0,0.000194,2]
[369066437,1751452240076,-151.0,0.000194,2]
[369066440,1751452240086,-151.0,0.000194,2]
[369066442,1751452240098,-151.0,0.000194,2]
[369066443,1751452240107,-151.0,0.000194,2]
[369066445,1751452240116,-151.0,0.000194,2]
[369066447,1751452240125,-300.0,0.00019432,2]
[369066449,1751452240135,-500.0,0.00019442,2]
[369066451,1751452240144,-154.96437637,0.00019442,2]
[369066453,1751452240153,-672.0,0.00019442,2]
[369066455,1751452240163,-500.0,0.00019442,2]
[369066457,1751452240172,-500.0,0.00019443,2]
[369066459,1751452240182,-150.0,0.00019443,2]
[369066461,1751452240191,-500.0,0.00019443,2]
[369066463,1751452240200,-500.0,0.00019451,2]
[369066465,1751452240209,-2585.53606942,0.00019451,2]
[369066467,1751452240218,-3134.91383313,0.00019451,2]
[369066469,1751452240227,-587.0,0.00019631,2]
[369066471,1751452240236,-1000.0,0.00019703,2]
[369066474,1751452240246,-500.0,0.0001971,2]
[369066476,1751452240255,-500.0,0.0001971,2]
[369066478,1751452240264,-500.0,0.0001971,2]
[369066480,1751452240274,-500.0,0.0001971,2]
[369066482,1751452240283,-500.0,0.0001971,2]
[369066484,1751452240292,-500.0,0.0001971,2]
[369066486,1751452240301,-500.0,0.0001971,2]
[369066488,1751452240311,-500.0,0.0001971,2]
[369066490,1751452240321,-500.0,0.0001971,2]
[369066492,1751452240330,-500.0,0.0001971,2]
[369066494,1751452240340,-500.0,0.0001971,2]
[369066496,1751452240349,-500.0,0.0001971,2]
[369066498,1751452240359,-500.0,0.0001971,2]
[369066500,1751452240368,-500.0,0.0001971,2]
[369066502,1751452240377,-500.0,0.0001971,2]
[369066504,1751452240386,-500.0,0.0001971,2]
[369066506,1751452240395,-500.0,0.0001971,2]
[369066508,1751452240405,-500.0,0.0001971,2]
[369066510,1751452240414,-500.0,0.0001971,2]
[369066512,1751452240423,-500.0,0.0001971,2]
[369066514,1751452240432,-500.0,0.0001971,2]
[369066516,1751452240442,-500.0,0.0001971,2]
[369066518,1751452240451,-500.0,0.0001971,2]
[369066520,1751452240461,-500.0,0.0001971,2]
[369066522,1751452240471,-500.0,0.0001971,2]
[369066524,1751452240481,-500.0,0.0001971,2]
[369066526,1751452240490,-500.0,0.0001971,2]
[369066528,1751452240499,-500.0,0.0001971,2]
[369066530,1751452240509,-500.0,0.0001971,2]
[369066532,1751452240518,-500.0,0.0001971,2]
[369066534,1751452240527,-500.0,0.0001971,2]
[369066536,1751452240537,-500.0,0.0001971,2]
[369066538,1751452240546,-500.0,0.0001971,2]
[369066540,1751452240556,-500.0,0.0001971,2]
[369066542,1751452240565,-500.0,0.0001971,2]
[369066544,1751452240575,-500.0,0.0001971,2]
[369066546,1751452240584,-500.0,0.0001971,2]
[369066548,1751452240593,-837.0,0.0001971,2]
[369066550,1751452240602,-500.0,0.0001971,2]
[369066552,1751452240611,-500.0,0.0001971,2]
[369066554,1751452240620,-500.0,0.0001971,2]
[369066556,1751452240630,-500.0,0.00019716,2]
[369066558,1751452240639,-672.0,0.00019716,2]
[369066560,1751452240648,-500.0,0.00019716,2]
[369066562,1751452240657,-500.0,0.00019717,2]
[369066564,1751452240666,-280.54768627,0.00019717,2]
[369066566,1751452240677,-500.0,0.00019717,2]
[369066568,1751452240687,-446.42396615,0.00019725,2]
[369066570,1751452240696,-156.587,0.00019726,2]
[369066572,1751452240705,-500.0,0.00019781,2]
[369066574,1751452240714,-150.0,0.00019834,2]
[369066576,1751452240724,-150.0,0.00019834,2]
[369066578,1751452240733,-150.0,0.00019834,2]
[369066580,1751452240742,-224.49359403,0.00019858,2]
[369066582,1751452240752,-157.11,0.0001989,2]
[369066584,1751452240761,-300.0,0.00019899,2]
[369066586,1751452240770,-300.0,0.00019899,2]
[369066588,1751452240780,-300.0,0.00019899,2]
[369066590,1751452240789,-244792.20084932,0.000199,2]
[369066592,1751452240799,-151.0,0.000199,2]
[369066594,1751452240809,-151.0,0.000199,2]
[369066596,1751452240818,-151.0,0.000199,2]
[369066598,1751452240828,-193.413073,0.000199,2]
[369066600,1751452240837,-193.413073,0.000199,2]
[369066602,1751452240846,-151.0,0.000199,2]
[369066604,1751452240855,-272.238493,0.000199,2]
[369066606,1751452240865,-272.238493,0.000199,2]
[369066608,1751452240875,-151.0,0.000199,2]
[369066610,1751452240885,-343.0583,0.000199,2]
[369066612,1751452240895,-343.0583,0.000199,2]
[369066614,1751452240904,-151.0,0.000199,2]
[369066616,1751452240914,-151.0,0.000199,2]
[369066618,1751452240924,-151.0,0.000199,2]
[369066620,1751452240934,-151.0,0.000199,2]
[369066622,1751452240944,-1000.0,0.00019921,2]
[369066624,1751452240954,-510.63546993,0.00019921,2]
[369066626,1751452240963,-1000.0,0.00019921,2]
[369066628,1751452240974,-1006.95643207,0.00019947,2]
[369066630,1751452240983,-500.0,0.00019973,2]
[369066632,1751452240993,-500.0,0.00019973,2]
[369066634,1751452241002,-500.0,0.00019973,2]
[369066636,1751452241012,-501.03579494,0.00019973,2]
[369066638,1751452241021,-500.0,0.00019973,2]
[369066658,1751452241203,-500.0,0.00019973,2]
[369066660,1751452241215,-500.0,0.00019973,2]
[369066662,1751452241225,-159.77424301,0.00019973,2]
[369066664,1751452241234,-164.76895447,0.00019973,2]
[369066666,1751452241243,-300.0,0.0001998,2]
[369066668,1751452241253,-300.0,0.00019984,2]
[369066670,1751452241262,-76480.52146111,0.00019985,2]
[369066672,1751452241271,-151.0,0.00019985,2]
[369066674,1751452241280,-151.0,0.00019985,2]
[369066676,1751452241289,-151.0,0.00019985,2]
[369066678,1751452241298,-193.413073,0.00019985,2]
[369066680,1751452241307,-193.413073,0.00019985,2]
[369066681,1751452241318,-151.0,0.00019985,2]
[369066683,1751452241327,-151.0,0.00019985,2]
[369066685,1751452241337,-272.238493,0.00019985,2]
[369066687,1751452241346,-272.238493,0.00019985,2]
[369066689,1751452241357,-151.0,0.00019985,2]
[369066692,1751452241367,-343.0583,0.00019985,2]
[369066694,1751452241377,-343.0583,0.00019985,2]
[369066696,1751452241388,-151.0,0.00019985,2]
[369066698,1751452241397,-184.061136,0.00019985,2]
[369066700,1751452241406,-500.0,0.0001999,2]
[369066702,1751452241415,-672.0,0.0001999,2]
[369066704,1751452241425,-500.0,0.0001999,2]
[369066706,1751452241435,-157.11,0.0001999,2]
[369066708,1751452241444,-157.11,0.0001999,2]
[369066710,1751452241454,-348.69518905,0.0001999,2]
[369066712,1751452241464,-500.0,0.00019991,2]
[369066714,1751452241473,-500.0,0.00019991,2]
[369066716,1751452241482,-300.0,0.00019999,2]
[369066717,1751452241491,-151765.94102052,0.0002,2]
[369066718,1751452241501,-92636.20848443,0.0002,2]
[369066719,1751452241510,-208225.60322636,0.0002,4]
[369066720,1751452241520,-89635.24067763,0.0002,2]
[369066721,1751452241529,-150.0,0.0002,2]
[369066722,1751452241538,-151.0,0.0002,2]
[369066723,1751452241547,-151.0,0.0002,2]
[369066724,1751452241557,-151.0,0.0002,2]
[369066725,1751452241566,-151.0,0.0002,2]
[369066726,1751452241575,-151.0,0.0002,2]
[369066727,1751452241585,-193.413073,0.0002,2]
[369066728,1751452241594,-193.413073,0.0002,2]
[369066729,1751452241604,-193.413073,0.0002,2]
[369066730,1751452241614,-193.413073,0.0002,2]
[369066731,1751452241623,-193.413073,0.0002,2]
[369066733,1751452241633,-193.413072,0.0002,2]
[369066735,1751452241643,-221.549687,0.0002,2]
[369066737,1751452241653,-151.0,0.0002,2]
[369066739,1751452241663,-296.750796,0.0002,2]
[369066741,1751452241673,-272.238493,0.0002,2]
[369066743,1751452241686,-272.238493,0.0002,2]
[369066745,1751452241696,-272.238493,0.0002,2]
[369066747,1751452241707,-272.238493,0.0002,2]
[369066749,1751452241716,-272.238493,0.0002,2]
[369066751,1751452241726,-272.238493,0.0002,2]
[369066753,1751452241736,-272.238493,0.0002,2]
[369066755,1751452241745,-272.238497,0.0002,2]
[369066757,1751452241758,-1500.0,0.0002,7]
[369066759,1751452241767,-1500.0,0.0002,7]
[369066761,1751452241776,-1500.0,0.0002,7]
[369066763,1751452241786,-1500.0,0.0002,7]
[369066765,1751452241798,-1500.0,0.0002,7]
[369066767,1751452241808,-1500.0,0.0002,7]
[369066769,1751452241817,-1500.0,0.0002,7]
[369066771,1751452241827,-1500.0,0.0002,7]
[369066774,1751452241839,-1500.0,0.0002,7]
[369066775,1751452241848,-1500.0,0.0002,7]
[369066777,1751452241860,-1500.0,0.0002,7]
[369066779,1751452241869,-1500.0,0.0002,7]
[369066781,1751452241878,-1500.0,0.0002,7]
[369066783,1751452241888,-1500.0,0.0002,7]
[369066785,1751452241898,-1500.0,0.0002,7]
[369066787,1751452241907,-1500.0,0.0002,7]
[369066789,1751452241917,-1500.0,0.0002,7]
[369066791,1751452241927,-1500.0,0.0002,7]
[369066794,1751452241938,-1500.0,0.0002,7]
[369066795,1751452241947,-1500.0,0.0002,7]
[369066797,1751452241957,-202.0,0.0002,2]
[369066799,1751452241966,-151.0,0.0002,2]
[369066801,1751452241976,-151.0,0.0002,2]
[369066803,1751452241985,-151.0,0.0002,2]
[369066805,1751452241995,-151.0,0.0002,2]
[369066807,1751452242004,-343.0583,0.0002,2]
[369066809,1751452242013,-343.0583,0.0002,2]
[369066811,1751452242023,-343.0583,0.0002,2]
[369066813,1751452242032,-343.0583,0.0002,2]
[369066815,1751452242041,-343.0583,0.0002,2]
[369066817,1751452242050,-343.0583,0.0002,2]
[369066819,1751452242059,-343.0583,0.0002,2]
[369066821,1751452242068,-343.058299,0.0002,2]
[369066823,1751452242078,-151.0,0.0002,2]
[369066825,1751452242087,-151.0,0.0002,2]
[369066827,1751452242098,-258.037584,0.0002,2]
[369066829,1751452242108,-4000.0,0.0002,4]
[369066831,1751452242117,-1106.1,0.0002002,2]
[369066833,1751452242126,-173.43542453,0.0002002,2]
[369066835,1751452242138,-2585.53606942,0.00020107,2]
[369066837,1751452242147,-3134.91383313,0.00020107,2]
[369066839,1751452242156,-1000.0,0.00020163,2]
[369066841,1751452242166,-500.0,0.00020264,2]
[369066843,1751452242175,-672.0,0.00020264,2]
[369066845,1751452242185,-500.0,0.00020264,2]
[369066847,1751452242195,-500.0,0.00020265,2]
[369066849,1751452242204,-162.380719,0.00020274,2]
[369066851,1751452242213,-800.0,0.00020324,4]
[369066853,1751452242222,-552.51,0.0002037,7]
[369066855,1751452242232,-552.51,0.0002037,7]
[369066857,1751452242241,-1000.0,0.00020391,2]
[369066859,1751452242251,-150.0,0.00020407,2]
[369066861,1751452242261,-150.0,0.00020407,2]
[369066863,1751452242270,-1516.96488328,0.00020468,2]
[369066865,1751452242280,-1500.0,0.00020468,2]
[369066867,1751452242289,-1000.0,0.00020521,2]
[369066869,1751452242299,-1000.0,0.00020521,2]
[369066871,1751452242308,-300.0,0.00020528,2]
[369066873,1751452242317,-500.0,0.00020538,2]
[369066875,1751452242326,-672.0,0.00020538,2]
[369066877,1751452242335,-500.0,0.00020538,2]
[369066879,1751452242344,-500.0,0.00020539,2]
[369066881,1751452242353,-3370.2,0.00020547,2]
[369066883,1751452242362,-20865.04,0.00020548,2]
[369066885,1751452242371,-177.71,0.00020548,2]
[369066887,1751452242381,-887.0,0.00020599,2]
[369066889,1751452242390,-156.0,0.00020599,2]
[369066891,1751452242399,-552.51,0.00020644,7]
[369066893,1751452242408,-552.51,0.00020644,7]
[369066895,1751452242417,-5933.66933256,0.00020659,3]
[369066897,1751452242426,-22054.79831407,0.000207,2]
[369066899,1751452242436,-150.0,0.000207,5]
[369066901,1751452242446,-2585.53606942,0.00020763,2]
[369066903,1751452242455,-3134.91383313,0.00020763,2]
[369066905,1751452242465,-2000.0,0.000208,2]
[369066907,1751452242474,-595.36345395,0.00020812,2]
[369066909,1751452242483,-672.0,0.00020812,2]
[369066911,1751452242493,-500.0,0.00020812,2]
[369066913,1751452242503,-150.0,0.00020813,2]
[369066916,1751452242512,-8053.86,0.00020822,2]
[369066918,1751452242522,-190.716305,0.00020822,2]
[369066920,1751452242531,-168.3888056,0.00020822,2]
[369066922,1751452242541,-1438.81916,0.000209,2]
[369066924,1751452242550,-552.51,0.00020918,7]
[369066927,1751452242559,-552.51,0.00020918,7]
[369066930,1751452242568,-500.0,0.0002092,2]
[369066932,1751452242577,-620.48586492,0.0002092,2]
[369066934,1751452242587,-517.527155,0.0002092,2]
[369066936,1751452242596,-154.08364763,0.0002092,2]
[369066938,1751452242605,-500.0,0.0002092,2]
[369066940,1751452242615,-408.06454149,0.0002092,2]
[369066942,1751452242625,-500.0,0.0002092,2]
[369066944,1751452242634,-159.8132969,0.0002092,2]
[369066946,1751452242644,-159.77596828,0.0002092,2]
[369066948,1751452242653,-500.0,0.0002092,2]
[369066950,1751452242662,-159.77250476,0.0002092,2]
[369066952,1751452242672,-500.1342927,0.0002092,2]
[369066954,1751452242682,-500.13081384,0.0002092,2]
[369066956,1751452242691,-500.0,0.0002092,2]
[369066958,1751452242701,-500.0,0.0002092,2]
[369066960,1751452242710,-159.77433919,0.0002092,2]
[369066962,1751452242720,-500.0,0.0002092,2]
[369066964,1751452242729,-500.0,0.0002092,2]
[369066966,1751452242738,-213.20924566,0.0002092,2]
[369066968,1751452242748,-500.38916958,0.0002092,2]
[369066970,1751452242758,-506.98175443,0.0002092,2]
[369066972,1751452242767,-300.0,0.00020999,2]
[369066974,1751452242777,-20000.0,0.00021,2]
[369066976,1751452242786,-1161.82076723,0.00021,2]
[369066978,1751452242795,-191.75263782,0.00021,2]
[369066980,1751452242805,-46896.44300807,0.00021,3]
[369066982,1751452242814,-836.11932155,0.00021,3]
[369066984,1751452242823,-2000.0,0.00021016,2]
[369066986,1751452242832,-1500.0,0.00021068,2]
[369066988,1751452242842,-1503.14277274,0.00021068,2]
[369066990,1751452242851,-300.0,0.00021076,2]
[369066992,1751452242861,-1000.0,0.00021078,2]
[369066994,1751452242870,-672.0,0.00021086,2]
[369066996,1751452242880,-500.0,0.00021086,2]
[369066999,1751452242891,-417.0,0.000211,2]
[369067001,1751452242900,-552.51,0.00021192,7]
[369067003,1751452242910,-552.51,0.00021192,7]
[369067005,1751452242920,-7356.62244981,0.00021249,2]
[369067007,1751452242929,-5933.66933256,0.00021348,5]
[369067009,1751452242938,-672.0,0.0002136,2]
[369067011,1751452242948,-500.0,0.0002136,2]
[369067013,1751452242957,-6168.32,0.0002137,2]
[369067015,1751452242966,-174.61919141,0.0002137,2]
[369067017,1751452242976,-2585.53606942,0.00021419,2]
[369067019,1751452242985,-3134.91383313,0.00021419,2]
[369067021,1751452242995,-186.83166921,0.00021445,2]
[369067023,1751452243005,-466.0,0.00021454,2]
[369067025,1751452243014,-552.51,0.00021466,7]
[369067027,1751452243024,-552.51,0.00021466,7]
[369067029,1751452243033,-697.32577742,0.00021468,2]
[369067031,1751452243043,-1000.0,0.00021468,2]
[369067033,1751452243052,-1000.0,0.00021468,2]
[369067035,1751452243061,-1214.93548092,0.00021616,2]
[369067037,1751452243071,-300.0,0.00021624,2]
[369067039,1751452243080,-672.0,0.00021634,2]
[369067041,1751452243093,-500.0,0.00021634,2]
[369067043,1751452243102,-552.51,0.0002174,7]
[369067045,1751452243112,-552.51,0.0002174,7]
[369067047,1751452243121,-3243.78732608,0.00021776,2]
[369067049,1751452243133,-672.0,0.00021908,2]
[369067051,1751452243143,-500.0,0.00021908,2]
[369067053,1751452243152,-411.0,0.00021914,3]
[369067055,1751452243161,-5000.0,0.00021918,2]
[369067057,1751452243172,-780.2,0.00021918,2]
[369067059,1751452243181,-151.555892,0.00021918,2]
[369067061,1751452243190,-151.555892,0.00021918,2]
[369067063,1751452243199,-151.555892,0.00021918,2]
[369067065,1751452243208,-151.555892,0.00021918,2]
[369067067,1751452243218,-151.555892,0.00021918,2]
[369067069,1751452243228,-151.555892,0.00021918,2]
[369067071,1751452243237,-151.555892,0.00021918,2]
[369067074,1751452243246,-151.555892,0.00021918,2]
[369067076,1751452243256,-151.555892,0.00021918,2]
[369067078,1751452243265,-151.555892,0.00021918,2]
[369067080,1751452243274,-151.555892,0.00021918,2]
[369067082,1751452243283,-151.555892,0.00021918,2]
[369067084,1751452243292,-151.555892,0.00021918,2]
[369067086,1751452243301,-151.555892,0.00021918,2]
[369067088,1751452243311,-151.555892,0.00021918,2]
[369067090,1751452243320,-151.555892,0.00021918,2]
[369067092,1751452243329,-151.555892,0.00021918,2]
[369067094,1751452243338,-151.555892,0.00021918,2]
[369067096,1751452243348,-151.555892,0.00021918,2]